Cogmind - Beta 13 @@@ ROGUE MODE // 2024.04.22 @ 13:17:06 Player: Oldman Pu Result: Destroyed by RE-4HP(R) with Subdweller Machine Gun Performance ------------- Evolutions (0) 0 Regions Visited (2) 400 Robots Destroyed (29) 145 Value Destroyed (597) 597 Prototype IDs (14) 280 Alien Tech Used (0) 0 Bonus (0) 0 TOTAL SCORE: 1422 Bonus ------- None Cogmind --------- Core Integrity 0/250 Matter 280/300 Energy 53/200 System Corruption 0% Temperature Cool (0) Movement Rolling (140) Ox4 Location -10/Subcaves Parts ------- > --- POWER (1) -------- Subdweller Power Source > --- PROPULSION (2) --- Wheel Wheel > --- UTILITY (2) ------ Huge Storage Unit Core Shielding > --- WEAPON (2) ------- Beam Cannon Beam Cannon > --- INVENTORY (25) --- Subdweller Power Source Arachnoskeleton Wheel Compact Wheel Compact Wheel Compact Wheel High-capacity Battery (250) Core Shielding Core Shielding Medium Laser Medium Laser Medium Laser Medium Laser Beam Cannon Subdweller Beam Cannon Subdweller Beam Cannon Assault Rifle Autogun Autogun Autogun Battle Rifle Battle Rifle Makeshift Shrapnel Gun Peak State ------------ > --- POWER ------------ Subdweller Power Source > --- PROPULSION ------- Wheel Wheel > --- UTILITY ---------- Huge Storage Unit Core Shielding > --- WEAPON ----------- Beam Cannon Subdweller Beam Cannon > --- INVENTORY -------- Subdweller Power Source Arachnoskeleton Wheel Compact Wheel Compact Wheel Compact Wheel High-capacity Battery Core Shielding Core Shielding Medium Laser Medium Laser Medium Laser Medium Laser Beam Cannon Beam Cannon Beam Cannon Assault Rifle Autogun Autogun Autogun Battle Rifle Battle Rifle Makeshift Shrapnel Gun [Rating: 14] Favorites ----------- Power Ion Engine Engine Ion Engine Propulsion Wheel Wheel Wheel Utility Huge Storage Unit Storage Huge Storage Unit Processor Targeting Computer Protection Core Shielding Weapon Beam Cannon Energy Cannon Beam Cannon Ballistic Gun Autogun Build | -11 -10 -10 ------- Run | Yrd Mat Sub Slots Evolved . | . . . Power . | . . . Propulsion . | . . . Utility . | . . . Weapon . | . . . Parts Attached 34 | 6 18 10 Power 5 | 1 1 3 Engine 5 | 1 1 3 Core . | . . . Reactor . | . . . Propulsion 14 | 2 10 2 Treads . | . . . Leg . | . . . Wheel 14 | 2 10 2 Hover . | . . . Flight . | . . . Utility 5 | 1 4 . Device . | . . . Storage 2 | 1 1 . Processor 1 | . 1 . Hackware . | . . . Protection 2 | . 2 . Artifact . | . . . Weapon 10 | 2 3 5 Energy Gun . | . . . Energy Cannon 6 | . 1 5 Ballistic Gun 4 | 2 2 . Ballistic Cannon . | . . . Launcher . | . . . Special Weapon . | . . . Impact Weapon . | . . . Slashing Weapon . | . . . Piercing Weapon . | . . . Special Melee Weapon . | . . . Unidentified Prototypes . | . . . Parts Lost 4 | . 3 1 Power 2 | . 1 1 Propulsion 1 | . 1 . Utility 1 | . 1 . Weapon . | . . . Highest Loss Streak 3 | . 3 1 To Critical Strikes . | . . . Average Slot Usage (%) 98 | . 98 99 Engine 13 | . 13 13 Wheel 27 | . 27 28 Storage 14 | . 14 14 Protection 13 | . 12 14 Energy Cannon 19 | . 11 27 Ballistic Gun 8 | . 16 . Naked Turns . | . . . Heaviest Build 97 | 12 92 97 Greatest Support 26 | 26 26 20 Greatest Overweight (x) 9 | 1 9 9 Average Overweight (x) 4 | . 6 4 Largest Inventory Capacity 25 | 8 25 25 Average Capacity 24 | 7 24 25 Most Carried 25 | 1 23 25 Average Carried 19 | . 13 24 Final Capacity 25 | 8 25 25 Final Carried 25 | 1 23 25 Class Distribution -------------------- 88% | Mutant 11% | Scavenger-Mutant Dominant Class ---------------- Mutant | -10/Materials Mutant | -10/Subcaves Resources | -11 -10 -10 ----------- Run | Yrd Mat Sub Matter Collected 736 | 203 444 89 Remotely . | . . . Salvage Created 1129 | . 654 475 Parts 54 | . 34 20 Haulers Intercepted 2 | . 2 . Recyclers Shooed . | . . . Parts Field Recycled . | . . . Retrieved Matter . | . . . Parts Self-Destructed . | . . . Prevented . | . . . Kills | -11 -10 -10 ------- Run | Yrd Mat Sub Combat Hostiles Destroyed 15 | . 8 7 Guns 4 | . 4 . Cannons 10 | . 3 7 AOE 1 | . 1 . Classes Destroyed 9 | . 9 . Worker 5 | . 5 . Hauler 2 | . 2 . Recycler 2 | . 2 . Mechanic 1 | . 1 . Operator 1 | . 1 . Watcher 3 | . 3 . Swarmer 3 | . 3 . Grunt 4 | . 4 . Subdweller 8 | . 1 7 Best Kill Streak 4 | . 4 1 Combat Bots Only 2 | . 2 1 Max Kills in Single Turn 2 | . 2 1 Gunslinging . | . . . Exploded 1 | . 1 . Melee . | . . . Uniques/NPCs Destroyed . | . . . Combat | -11 -10 -10 -------- Run | Yrd Mat Sub Hostile Shots Fired 76 | . 32 44 Missed 30 | . 12 18 Damage Taken 1132 | . 510 622 Core 263 | . 120 143 Absorbed by Shields . | . . . Redirected to Shielding 44 | . 11 33 Core Remaining (%) 100 | 100 . . Volleys Fired 149 | . 69 80 Largest 2 | . 2 2 Hottest 140 | . 83 140 Shots Fired 293 | . 138 155 Gun 93 | . 91 2 Cannon 200 | . 47 153 Launcher . | . . . Special . | . . . Kinetic 93 | . 91 2 Thermal 200 | . 47 153 Explosive . | . . . Electromagnetic . | . . . Robot Hit Streak 24 | . 7 24 Robot Miss Streak 4 | . 4 2 Penetration Max . | . . . Secondary Targets . | . . . Shots Hit Robots 139 | . 78 61 Core Hits 45 | . 29 16 Critical Kills 2 | . . 2 Critical Parts Destroyed . | . . . Critical Strikes 2 | . . 2 Meltdown 2 | . . 2 Melee Attacks . | . . . Impact . | . . . Slashing . | . . . Piercing . | . . . Sneak Attacks . | . . . Combat Hostiles . | . . . Follow-up Attacks . | . . . Damage Inflicted 2160 | . 1108 1052 Guns 660 | . 630 30 Cannons 1478 | . 456 1022 Explosions . | . . . Melee . | . . . Ramming 22 | . 22 . Kinetic 660 | . 630 30 Thermal 1478 | . 456 1022 Explosive . | . . . Electromagnetic . | . . . Impact . | . . . Slashing . | . . . Piercing . | . . . Highest Corruption . | . . . Average Corruption . | . . . Corruption Purged . | . . . Corruption Blocked . | . . . Overload Shots . | . . . Overflow Damage 6 | . 6 . Projectiles 6 | . 6 . Explosions . | . . . Melee . | . . . Knockbacks 1 | . 1 . Impact 1 | . 1 . Kinetic . | . . . Secondary . | . . . Self-Inflicted Damage 11 | . 11 . Shots . | . . . Rammed 1 | . 1 . Targets Rammed 1 | . 1 . Kicked . | . . . Crushed . | . . . Highest Temperature 371 | . 371 72 Average Temperature 51 | . 77 17 Received Heat Transfer 126 | . 90 36 Effects 1 | . 1 . Shutdowns 1 | . 1 . Siege Activations . | . . . Robots Corrupted . | . . . Combat Hostiles . | . . . Parts Fried . | . . . Impact Corruptions . | . . . Robots Melted 2 | . . 2 Combat Hostiles 2 | . . 2 Parts Melted 7 | . . 7 Heat Transferred 2960 | . 962 1998 Parts Sabotaged . | . . . Parts Stolen . | . . . Parts Stripped . | . . . Power Chain Reactions . | . . . Alert | -11 -10 -10 ------- Run | Yrd Mat Sub Peak Influence 107 | . 107 . Initial . | . . . Average 29 | . 30 . Maximum Alert Level . | . . . Low Security (%) 100 | 100 100 . Level 1 . | . . . Level 2 . | . . . Level 3 . | . . . Level 4 . | . . . Level 5 . | . . . High Security . | . . . Max Security . | . . . Squads Dispatched 1 | . 1 . Investigation . | . . . Extermination . | . . . Reinforcement 1 | . 1 . Assault . | . . . Garrison . | . . . Intercept . | . . . Searches Triggered . | . . . Construction Impeded . | . . . Haulers Reinforced . | . . . Active Scanning Responses . | . . . Cargo Convoy Interrupts . | . . . Stealth | -11 -10 -10 --------- Run | Yrd Mat Sub Distress Signals 1 | . 1 . Communications Jammed . | . . . Distress Signals . | . . . Times Spotted 26 | . 18 8 Peak Tracking Total 4 | . 4 2 Tactical Retreats . | . . . Traps | -11 -10 -10 ------- Run | Yrd Mat Sub Traps Triggered 2 | . 1 1 Indirectly . | . . . Trap Hack Attempts . | . . . Triggered . | . . . Disarmed . | . . . Reprogrammed . | . . . Reused . | . . . Traps Extracted . | . . . Installed . | . . . Triggered . | . . . Machines | -11 -10 -10 ---------- Run | Yrd Mat Sub Machines Disabled 1 | . . 1 Max in Single Turn 1 | . . 1 Machines Repaired . | . . . Machines Dismantled . | . . . Machines Sabotaged . | . . . Overloaded Fab Kills . | . . . Hacking | -11 -10 -10 --------- Run | Yrd Mat Sub Machines Accessed 8 | . 6 2 Terminals 6 | . 6 . Fabricators . | . . . Repair Stations . | . . . Recycling Units . | . . . Scanalyzers . | . . . Garrison Access . | . . . Total Hacks 29 | . 19 10 Successful 19 | . 9 10 Failed 10 | . 10 . Catastrophic . | . . . Database Lockouts . | . . . Manual . | . . . Terminals 19 | . 19 . Fabricators . | . . . Repair Stations . | . . . Recycling Units . | . . . Scanalyzers . | . . . Garrison Access . | . . . Terminal Hacks 19 | . 9 10 Record 9 | . . 9 Prototype ID Bank 2 | . 2 . Level Access Points 1 | . 1 . Branch Access Points 1 | . 1 . Emergency Access Points 2 | . 2 . Locate Traps 2 | . 2 . Maintenance Status 1 | . 1 . Derelict Proto ID Bank 1 | . . 1 Fabricator Hacks . | . . . Repair Station Hacks . | . . . Recycling Unit Hacks . | . . . Scanalyzer . | . . . Garrison Access Hacks . | . . . Unauthorized Hacks . | . . . Terminals . | . . . Fabricators . | . . . Repair Stations . | . . . Recycling Units . | . . . Scanalyzers . | . . . Garrison Access . | . . . Data Cores Recovered . | . . . Used . | . . . Hacking Detections 6 | . 6 . Full Trace Events . | . . . Feedback Events . | . . . Feedback Blocked . | . . . Robot Schematics Acquired . | . . . Robots Built . | . . . Authchips . | . . . Time . | . . . Total Robot Build Rating . | . . . Part Schematics Acquired . | . . . Parts Built . | . . . Authchips . | . . . Time . | . . . Total Part Build Rating . | . . . Parts Repaired . | . . . Time . | . . . Parts Recycled . | . . . Recycled Matter . | . . . Retrieved Matter . | . . . Retrieved Components . | . . . Parts Scanalyzed . | . . . Part Schematics Acquired . | . . . Parts Damaged . | . . . Bothacking | -11 -10 -10 ------------ Run | Yrd Mat Sub Used RIF Installer . | . . . Robots Hacked . | . . . Non-combat . | . . . Combat . | . . . Robot Hacks Applied . | . . . Relay Couplers Released . | . . . Fabnet Peak Effective % . | . . . Robots Rewired . | . . . Allies Hacked . | . . . Hacks Repelled . | . . . Allies | -11 -10 -10 -------- Run | Yrd Mat Sub Total Allies . | . . . Largest Group . | . . . Highest-Rated Group . | . . . Highest-Rated Ally . | . . . Total Orders . | . . . Ally Attacks . | . . . Total Damage . | . . . Kills . | . . . Allies Corrupted . | . . . Allies Melted . | . . . Intel | -11 -10 -10 ------- Run | Yrd Mat Sub Robot Analysis Total . | . . . Derelict Logs Recovered . | . . . Drone Launches . | . . . Drone Recoveries . | . . . Exploration | -11 -10 -10 ------------- Run | Yrd Mat Sub Turns Passed 3310 | 32 1630 1648 Spaces Moved 1718 | 27 743 948 Core 6 | 6 . . Treads . | . . . Legs . | . . . Wheels 1712 | 21 743 948 Hover . | . . . Flight . | . . . Fastest Speed 50 | 50 90 140 Average Speed 154 | 83 171 143 Slowest Speed 215 | 100 215 215 Overloaded Moves . | . . . Propulsion Burnouts . | . . . Robots Hopped . | . . . Cave-ins Triggered . | . . . Exploration Rate (%) 56 | 3 99 67 Regions Visited 2 Branch Regions 1 Pre-discovered Areas 1 | . . 1 Known Exits Taken . | . . . Unknown Exits Taken 2 | 1 1 . Scrap Searched 7 | . . 7 Spaces Dug . | . . . Terrain Destroyed . | . . . Melee . | . . . Projectile . | . . . AOE . | . . . Terrain Rammed . | . . . Walls Destroyed . | . . . Machines Disabled . | . . . Actions | -11 -10 -10 --------- Run | Yrd Mat Sub Total 2084 | 33 970 1081 Wait 135 | . 116 19 Move 1716 | 26 742 948 Hop . | . . . Pick Up 29 | 1 17 11 Fast Attach 13 | 6 5 2 Attach 3 | . 1 2 Detach . | . . . Swap 18 | . 12 6 Drop 20 | . 7 13 Fire 149 | . 69 80 Melee . | . . . Ram 1 | . 1 . Kick . | . . . Crush . | . . . Escape Stasis . | . . . Rewire . | . . . Trap . | . . . Miscellaneous . | . . . Route ------- -11/Scrapyard -10/Materials (discovered 6 exits: *Mat x3 / *Min x2 / *Sub) -10/Subcaves (discovered 1 exit: [*Mat]) History --------- Turn | Location | Event 20 | -11/Scrapyard | Discovered new exit (range 15) 33 | -11/Scrapyard | Entered Materials 175 | -10/Materials | Lost 3 parts (1p1n1u) 312 | -10/Materials | Build established: Mutant 312 | -10/Materials | Discovered new exit (range 5) 389 | -10/Materials | Discovered new exit (range 5) 412 | -10/Materials | Identified exit to Mines 412 | -10/Materials | Identified exit to Materials 833 | -10/Materials | Derelicts attacked the area 1627 | -10/Materials | Discovered new exit (range 8) 1663 | -10/Materials | Entered Subcaves 1781 | -10/Subcaves | Core integrity fell below 50% 1812 | -10/Subcaves | Discovered new exit (range 13) 1864 | -10/Subcaves | Shifting Twisted Machinery released Enh. Flamer 1901 | -10/Subcaves | Shifting Twisted Machinery released Mak. Hammer 1964 | -10/Subcaves | Visited Clippyterm 2231 | -10/Subcaves | Disturbed a concealed Subdweller 2506 | -10/Subcaves | Visited 4L-MR0's lab 2524 | -10/Subcaves | Found Arachnoskeleton 2583 | -10/Subcaves | Build established: Scavenger-Mutant 2682 | -10/Subcaves | A swath of the cavern ceiling suddenly collapsed 2778 | -10/Subcaves | Learned location of Zion (-7) 2778 | -10/Subcaves | Met a Zionite searching for "candidates" 2976 | -10/Subcaves | Build established: Mutant 3264 | -10/Subcaves | Core integrity fell below 20% 3311 | -10/Subcaves | Destroyed by RE-4HP(R) with Subdweller Machine Gun Last Messages --------------- 02669_ Dropped Broken Sub. Power Source. A swath of the cavern ceiling suddenly collapses. 02730_ Z2-ZOH(z): "She is not going to be happy we haven't found any suitable candidates yet." 02747_ 1L-DMU(R) destroyed. 02751_ Acquired Sub. Power Source. 02777_ Acquired 10 matter. 02778_ Z2-ZOH(z): "Hey you! It's really dangerous down here, I feel that you could die at any moment. For your health and safety might I suggest a trip to Zion?" World map updated: -7/Zion. 02784_ Sub. Power Source shoots sparks and powers down. 03074_ Dropped Beam Cannon. 03074_ Acquired Sub. Beam Cannon. 03259_ Sub. Beam Cannon shoots sparks and powers down. 03278_ 01-OL4(R) destroyed. 03302_ Dropped Broken Sub. Power Source. 03303_ Acquired Sub. Power Source. 03310_ Sub. Optics melted. 03310_ 9Y-UT6(R) destroyed. Map ----- +----------------------------------------------------+ | ??????????????????????????????????????????? | | ##????????????????####????????????????????? | | ##?????????????## ###??????????????????? | | #???????????## #??????????????????? | | #??????????## #???????????????????? | | #####?????## #????????????????????? | | # ####### #?????????????????????? | | #??????????????????????? | | ####??????????????????????? | | ### # ##??#######????????????????? | | #?####### #### ##???????????????? | | #???????## ## #???????????????? | | #?###????# " #???????????????? | | ### ##??## ### #????????????????? | | #?## ### "##???????????????? | | ###"" ## ##??????????????? | | "##"" " #??????????????? | | "###" " #??????????????? | | ### ""#### " #??????????????? | | #?## ###??#" ## ####??????????????? | | ???# #?##### ### #?????????????????? | | ???# ##""#?# #### #?????????????????? | | ???## "" #?# ####?????????????????? | | ????# #?#### ######??????????????? | | ##### ###??# ![%#??????????????? | | # ## ##?## @!#??????????????? | | ## #??# *!#??????????????? | | #??????????????? | | & ## ## ! #??????????????? | | % #### ## ### ####%& #?????????????? | | & #??# #####?###??#&= #?????????????? | | # #??# #?????????? ##?????????????? | | ######??" #?????????? #??????????????? | | #"#????? #?????????? #??????????????? | | "#????? #????????? #??????????????? | | "##????## #????????? #??????????????? | | " "##?????# #????????? R #??????????????? | | """ ##???#?##????????? ####??????????????? | | "" ### ## ###?????# ??????????????????? | | " ????? ??????????????????? | | " ????????? ??????????????????? | | """### ?????????????????????????????? | | """ #" #??????????????????????????????????? | | ##" "# ???????????????????????????????????? | | # " "#????????????????????????????????????? | | ## "#" # #??????????????????????????????? | | ## """ ??????????????????????????????? | | " """# #?????????????????????????????? | | ""## ## #????????????????????????????? | | ###??###????????????????????????????????? | +----------------------------------------------------+ Best States ------------- Heat Dissipation 25 Energy Generation 15 Energy Capacity 250 Matter Stores 300 Matter Capacity 300 Sight Range 16 Terrain Scan Density 10 Armor Coverage 150 Core Shielding 20 Evasion (%) 42 Targeting Accuracy 5 Item Schematics ----------------- None Robot Schematics ------------------ None Fabricated ------------ Nothing Alien Tech Used ----------------- None Achievements -------------- None Challenges ------------ None Game ------ Seed MachineHugeLoader Manual? 0 Play Time 00:25:03 Cumulative 274.0 hours Start 2024.04.22 @ 12:55:52 End 2024.04.22 @ 13:17:06 Sessions 1 Manual Loads 0 Difficulty Rogue Special Mode None Game No. 215 Rogue 203 Adventurer 12 Explorer 0 Win Type - Total 1 Types 1/0/0/0/0/0/0/0/0 Lore% 33 Gallery% 51 Achievement% 37 Wizard Run 0 Options --------- Layout 1 ASCII 0 Keyboard 0 Movement Mouse Keybinds 0 Fullscreen 1 Font 32/SmallcapsGlow Map View 77x35 Zoom Use 0% Tactical HUD 1 Map Filters NONE Filters NONE Steam 1 RUN: 5917b422-b96f-4c50-b0e3-7565b746a3a1